[Event "1000GM NY Winter IM-C 2024"]
[Site "New York"]
[Date "2024.01.15"]
[Round "8.9"]
[White "Martin Del Campo Cardenas, Roberto Abel"]
[Black "Venkatesh, Narayan"]
[Result "1-0"]
[ECO "C07"]
[WhiteElo "2205"]
[BlackElo "1965"]
[Annotator "NA"]
[PlyCount "109"]
[EventDate "2024.01.10"]
[EventType "swiss"]
[EventCountry "USA"]
[SourceTitle "playchess.com"]
[Source "ChessBase"]
[SourceQuality "1"]
[TimeControl "5400+30"]

1. e4 {[%emt 0:07:08]} e6 {[%emt 0:00:25]} 2. d4 {[%emt 0:00:57]} d5 {[%emt 0:00:10]} 3. Nd2 {[%emt 0:00:04]} c5 {[%emt 0:00:07]} 4. exd5 {[%emt 0:01:23]} Qxd5 {[%emt 0:00:11]} 5. Ngf3 {[%emt 0:00:17]} cxd4 {[%emt 0:00:11]} 6. Bc4 {[%emt 0:00:04]} Qd6 {[%emt 0:00:11]} 7. O-O {[%emt 0:00:07]} Nf6 {[%emt 0:00:08]} 8. Nb3 {[%emt 0:00:11]} Nc6 {[%emt 0:00:10]} 9. Nbxd4 {[%emt 0:01:35]} Nxd4 {[%emt 0:00:18]} 10. Nxd4 {[%emt 0:00:33]} Be7 {[%emt 0:00:12]} 11. c3 {[%emt 0:01:32]} O-O {[%emt 0:00:15]} 12. Qf3 {[%emt 0:00:42]} Qc7 {[%emt 0:00:10]} 13. Bb3 {[%emt 0:00:29]} a5 {[%emt 0:00:21]} 14. a4 {[%emt 0:04:56]} Bd7 {[%emt 0:00:39]} 15. Re1 {[%emt 0:00:18]} Bd6 {[%emt 0:01:51]} 16. h3 {[%emt 0:01:55]} e5 {[%emt 0:11:46]} 17. Nb5 {[%emt 0:01:46]} Bxb5 {[%emt 0:00:27]} 18. axb5 {[%emt 0:00:06]} e4 {[%emt 0:01:54]} 19. Qe2 {[%emt 0:05:17]} h6 {[%emt 0:09:29]} 20. Be3 {[%emt 0:04:43]} b6 {[%emt 0:16:24]} 21. Ra4 {[%emt 0:02:30]} Rac8 {[%emt 0:16:14]} 22. Rc4 {[%emt 0:04:43]} Qb8 {[%emt 0:04:55]} 23. Rc6 {[%emt 0:11:45]} Rxc6 {[%emt 0:05:43]} 24. bxc6 {[%emt 0:00:18]} b5 {[%emt 0:01:39]} 25. c4 {[%emt 0:02:58]} b4 {[%emt 0:02:33]} 26. Ba4 {[%emt 0:02:24]} Rd8 {[%emt 0:02:04]} 27. Rd1 {[%emt 0:03:27]} Be5 {[%emt 0:02:00]} 28. b3 {[%emt 0:01:17]} Qc7 {[%emt 0:01:32]} 29. Rd2 {[%emt 0:03:12]} Qe7 {[%emt 0:06:34]} 30. Qd1 {[%emt 0:17:18]} Rxd2 {[%emt 0:01:20]} 31. Qxd2 {[%emt 0:00:03]} Bc7 {[%emt 0:02:20]} 32. Qd4 {[%emt 0:01:05]} Qd8 {[%emt 0:02:12]} 33. Qxd8+ {[%emt 0:03:36]} Bxd8 {[%emt 0:00:13]} 34. g4 {[%emt 0:00:03]} Bc7 {[%emt 0:01:40]} 35. Kf1 {[%emt 0:00:13]} h5 {[%emt 0:05:02]} 36. g5 {[%emt 0:04:08]} Nh7 {[%emt 0:01:08]} 37. Ke2 {[%emt 0:02:36]} Nf8 {[%emt 0:00:23]} 38. h4 {[%emt 0:03:41]} Ne6 {[%emt 0:01:01]} 39. Ba7 {[%emt 0:00:25]} f5 {[%emt 0:01:05]} 40. gxf6 {[%emt 0:01:03]} gxf6 {[%emt 0:00:07]} 41. Bb5 {[%emt 0:00:16]} f5 {[%emt 0:00:54]} 42. f3 {[%emt 0:02:36]} exf3+ {[%emt 0:01:46]} 43. Kxf3 {[%emt 0:00:04]} Kf7 {[%emt 0:00:09]} 44. Bf2 {[%emt 0:01:58]} Kf6 {[%emt 0:00:29]} 45. c5 {[%emt 0:03:20]} Ke5 {[%emt 0:01:28]} 46. Bc4 {[%emt 0:01:11]} Nd4+ {[%emt 0:01:42]} 47. Ke3 {[%emt 0:00:27]} Nxc6 {[%emt 0:02:28]} 48. Bg3+ {[%emt 0:00:05]} Kf6 {[%emt 0:00:00]} 49. Bxc7 {[%emt 0:00:04]} Ke7 {[%emt 0:00:00]} 50. Bb5 {[%emt 0:00:36]} Na7 {[%emt 0:01:30]} 51. Ba4 {[%emt 0:00:10]} Ke6 {[%emt 0:00:00]} 52. Bxa5 {[%emt 0:00:07]} Kd5 {[%emt 0:01:00]} 53. Bxb4 {[%emt 0:00:08]} Nc8 {[%emt 0:00:00]} 54. Bd7 {[%emt 0:00:51]} Na7 {[%emt 0:00:00]} 55. Kf4 {[%emt 0:00:15]} 1-0

[Event "1000GM NY Winter IM-C 2024"]
[Site "New York"]
[Date "2024.01.16"]
[Round "9.1"]
[White "Goktepe, Derin"]
[Black "Almeida Saenz, Alfonso"]
[Result "1/2-1/2"]
[ECO "E16"]
[WhiteElo "2187"]
[BlackElo "2222"]
[Annotator "RC"]
[PlyCount "112"]
[EventDate "2024.01.10"]
[EventType "swiss"]
[EventCountry "USA"]
[SourceTitle "playchess.com"]
[Source "ChessBase"]
[SourceQuality "1"]
[TimeControl "5400+30"]

1. d4 {[%emt 0:00:02]} Nf6 {[%emt 0:03:56]} 2. c4 {[%emt 0:00:12]} e6 {[%emt 0:00:42]} 3. Nf3 {[%emt 0:00:19]} Bb4+ {[%emt 0:00:21]} 4. Bd2 {[%emt 0:00:40]} a5 {[%emt 0:00:44]} 5. g3 {[%emt 0:00:52]} b6 {[%emt 0:00:08]} 6. a3 {[%emt 0:01:45]} Bxd2+ {[%emt 0:00:30]} 7. Nbxd2 {[%emt 0:01:19]} Bb7 {[%emt 0:00:06]} 8. Bg2 {[%emt 0:02:11]} O-O {[%emt 0:00:07]} 9. O-O {[%emt 0:00:23]} c5 {[%emt 0:00:21]} 10. e3 {[%emt 0:03:51]} Ra7 {[%emt 0:00:49]} 11. Qc2 {[%emt 0:03:49]} Nc6 {[%emt 0:01:17]} 12. Rfd1 {[%emt 0:04:13]} cxd4 {[%emt 0:01:09]} 13. Nxd4 {[%emt 0:10:41]} Nxd4 {[%emt 0:00:31]} 14. exd4 {[%emt 0:00:13]} Bxg2 {[%emt 0:00:07]} 15. Kxg2 {[%emt 0:00:06]} Qa8+ {[%emt 0:00:09]} 16. Kg1 {[%emt 0:02:23]} Rc8 {[%emt 0:00:08]} 17. Qd3 {[%emt 0:16:54]} d5 {[%emt 0:00:47]} 18. b3 {[%emt 0:11:01]} Rac7 {[%emt 0:00:18]} 19. a4 {[%emt 0:00:58]} h5 {[%emt 0:00:26]} 20. h4 {[%emt 0:00:34]} Qa6 {[%emt 0:00:46]} 21. Qf3 {[%emt 0:02:17]} Rd7 {[%emt 0:01:13]} 22. Rac1 {[%emt 0:02:49]} Rcd8 {[%emt 0:00:16]} 23. c5 {[%emt 0:00:49]} bxc5 {[%emt 0:00:07]} 24. Rxc5 {[%emt 0:00:45]} Qb6 {[%emt 0:00:12]} 25. Qc3 {[%emt 0:05:59]} Ra8 {[%emt 0:00:16]} 26. Rc6 {[%emt 0:01:38]} Qa7 {[%emt 0:00:28]} 27. Qc5 {[%emt 0:02:49]} Rb7 {[%emt 0:01:23]} 28. Rc1 {[%emt 0:00:55]} Qxc5 {[%emt 0:07:40]} 29. R1xc5 {[%emt 0:00:35]} Rb4 {[%emt 0:00:22]} 30. Nf3 {[%emt 0:04:03]} Ne4 {[%emt 0:00:27]} 31. Rb5 {[%emt 0:02:33]} Rb8 {[%emt 0:00:17]} 32. Ne5 {[%emt 0:04:16]} f6 {[%emt 0:02:52]} 33. Nd7 {[%emt 0:04:42]} R8xb5 {[%emt 0:00:16]} 34. axb5 {[%emt 0:00:07]} Rxb5 {[%emt 0:00:07]} 35. Rxe6 {[%emt 0:00:25]} Rxb3 {[%emt 0:00:15]} 36. Ra6 {[%emt 0:00:44]} Rb1+ {[%emt 0:00:34]} 37. Kg2 {[%emt 0:00:27]} Rb2 {[%emt 0:01:02]} 38. Rxa5 {[%emt 0:00:23]} Nxf2 {[%emt 0:00:13]} 39. Rxd5 {[%emt 0:00:40]} Ng4+ {[%emt 0:01:06]} 40. Kf3 {[%emt 0:01:53]} g6 {[%emt 0:00:14]} 41. Ra5 {[%emt 0:01:15]} Kf7 {[%emt 0:01:33]} 42. Nc5 {[%emt 0:00:51]} Rf2+ {[%emt 0:00:20]} 43. Ke4 {[%emt 0:00:04]} Re2+ {[%emt 0:00:42]} 44. Kf4 {[%emt 0:00:26]} Rf2+ {[%emt 0:01:13]} 45. Ke4 {[%emt 0:00:05]} f5+ {[%emt 0:01:35]} 46. Kd5 {[%emt 0:00:16]} Ne3+ {[%emt 0:00:55]} 47. Kc6 {[%emt 0:00:06]} f4 {[%emt 0:01:46]} 48. Ra7+ {[%emt 0:00:40]} Kg8 {[%emt 0:00:08]} 49. gxf4 {[%emt 0:00:42]} Rxf4 {[%emt 0:00:02]} 50. Ne6 {[%emt 0:00:54]} Rxh4 {[%emt 0:00:37]} 51. Rg7+ {[%emt 0:00:16]} Kh8 {[%emt 0:00:19]} 52. Rxg6 {[%emt 0:00:28]} Rh1 {[%emt 0:00:20]} 53. d5 {[%emt 0:01:11]} Rc1+ {[%emt 0:00:24]} 54. Kd6 {[%emt 0:00:15]} Rd1 {[%emt 0:00:48]} 55. Rh6+ {[%emt 0:00:27]} Kg8 {[%emt 0:00:09]} 56. Rxh5 {[%emt 0:00:13]} Rxd5+ {[%emt 0:00:05]} 1/2-1/2

[Event "1000GM NY Winter IM-C 2024"]
[Site "New York"]
[Date "2024.01.16"]
[Round "9.2"]
[White "Kovalchuk, Igor"]
[Black "Yoo, Eugene"]
[Result "0-1"]
[ECO "A02"]
[WhiteElo "2030"]
[BlackElo "2168"]
[Annotator "NA RC"]
[PlyCount "60"]
[EventDate "2024.01.10"]
[EventType "swiss"]
[EventCountry "USA"]
[SourceTitle "playchess.com"]
[Source "ChessBase"]
[SourceQuality "1"]
[TimeControl "5400+30"]

1. f4 {[%emt 0:00:08]} c5 {[%emt 0:00:58]} 2. Nf3 {[%emt 0:00:10]} Nc6 {[%emt 0:00:03]} 3. e3 {[%emt 0:00:18]} g6 {[%emt 0:00:42]} 4. c3 {[%emt 0:02:30]} Nf6 {[%emt 0:03:27]} 5. d4 {[%emt 0:02:06]} d5 {[%emt 0:01:53]} 6. Nbd2 {[%emt 0:03:03]} Bg7 {[%emt 0:01:42]} 7. Bb5 {[%emt 0:02:50]} Qb6 {[%emt 0:03:29]} 8. Bd3 {[%emt 0:02:35]} O-O {[%emt 0:00:03]} 9. O-O {[%emt 0:05:04]} Ne8 {[%emt 0:03:51]} 10. Kh1 {[%emt 0:02:26]} Nd6 {[%emt 0:00:17]} 11. dxc5 {[%emt 0:01:15]} Qxc5 {[%emt 0:00:12]} 12. e4 {[%emt 0:00:12]} dxe4 {[%emt 0:05:17]} 13. Nxe4 {[%emt 0:00:15]} Nxe4 {[%emt 0:00:01]} 14. Bxe4 {[%emt 0:00:10]} Be6 {[%emt 0:00:53]} 15. Bxc6 {[%emt 0:00:57]} bxc6 {[%emt 0:02:31]} 16. Nd4 {[%emt 0:02:13]} Bd5 {[%emt 0:14:17]} 17. Be3 {[%emt 0:01:51]} Qd6 {[%emt 0:02:59]} 18. Nb3 {[%emt 0:03:33]} Rfd8 {[%emt 0:06:13]} 19. Qe1 {[%emt 0:04:30]} Qb8 {[%emt 0:03:26]} 20. Rd1 {[%emt 0:06:06]} a5 {[%emt 0:01:43]} 21. Rf2 {[%emt 0:01:39]} a4 {[%emt 0:00:37]} 22. Nc1 {[%emt 0:00:51]} Be4 {[%emt 0:09:45]} 23. Rxd8+ {[%emt 0:10:51]} Qxd8 {[%emt 0:00:01]} 24. Rd2 {[%emt 0:00:12]} Qc7 {[%emt 0:02:18]} 25. Ne2 {[%emt 0:06:15]} e5 {[%emt 0:05:10]} 26. fxe5 {[%emt 0:08:05]} Bxe5 {[%emt 0:04:32]} 27. Bd4 {[%emt 0:01:51]} Re8 {[%emt 0:01:49]} 28. Qh4 {[%emt 0:02:57]} Bxd4 {[%emt 0:07:24]} 29. Nxd4 {[%emt 0:01:17]} Bd5 {[%emt 0:00:27]} 30. a3 {[%emt 0:05:33]} Qf4 {[%emt 0:02:55]} 0-1

[Event "1000GM NY Winter IM-C 2024"]
[Site "New York"]
[Date "2024.01.16"]
[Round "9.4"]
[White "Bonin, Jay"]
[Black "Ho, Carter"]
[Result "1-0"]
[ECO "E11"]
[WhiteElo "2166"]
[BlackElo "2180"]
[Annotator "NA RC"]
[PlyCount "117"]
[EventDate "2024.01.10"]
[EventType "swiss"]
[EventCountry "USA"]
[SourceTitle "playchess.com"]
[Source "ChessBase"]
[SourceQuality "1"]
[TimeControl "5400+30"]

1. d4 {[%emt 0:00:30]} Nf6 {[%emt 0:01:05]} 2. Nf3 {[%emt 0:00:08]} d5 {[%emt 0:00:07]} 3. c4 {[%emt 0:00:09]} e6 {[%emt 0:00:07]} 4. g3 {[%emt 0:00:12]} Bb4+ {[%emt 0:00:22]} 5. Bd2 {[%emt 0:00:04]} Be7 {[%emt 0:00:06]} 6. Bg2 {[%emt 0:00:09]} O-O {[%emt 0:00:26]} 7. Qc2 {[%emt 0:00:05]} c6 {[%emt 0:00:11]} 8. O-O {[%emt 0:00:16]} Nbd7 {[%emt 0:00:18]} 9. Bg5 {[%emt 0:00:30]} Ne4 {[%emt 0:02:36]} 10. Bxe7 {[%emt 0:00:12]} Qxe7 {[%emt 0:00:07]} 11. Nbd2 {[%emt 0:03:34]} f5 {[%emt 0:01:12]} 12. Rac1 {[%emt 0:00:09]} g5 {[%emt 0:12:59]} 13. Ne5 {[%emt 0:04:40]} Nxe5 {[%emt 0:02:45]} 14. dxe5 {[%emt 0:00:20]} Bd7 {[%emt 0:00:14]} 15. cxd5 {[%emt 0:04:09]} exd5 {[%emt 0:00:34]} 16. f4 {[%emt 0:00:36]} gxf4 {[%emt 0:04:06]} 17. gxf4 {[%emt 0:00:43]} Kh8 {[%emt 0:02:45]} 18. Kh1 {[%emt 0:01:44]} Rg8 {[%emt 1:09:30]} 19. Nxe4 {[%emt 0:00:25]} fxe4 {[%emt 0:00:00]} 20. Qc3 {[%emt 0:00:47]} Bf5 {[%emt 0:00:00]} 21. Rg1 {[%emt 0:01:47]} Qe6 {[%emt 0:00:00]} 22. b4 {[%emt 0:04:02]} Rg6 {[%emt 0:00:00]} 23. Qe3 {[%emt 0:02:14]} Rag8 {[%emt 0:00:00]} 24. Qxa7 {[%emt 0:03:37]} h5 {[%emt 0:00:00]} 25. Qf2 {[%emt 0:05:09]} h4 {[%emt 0:00:00]} 26. Bh3 {[%emt 0:05:01]} Rxg1+ {[%emt 0:00:00]} 27. Rxg1 {[%emt 0:04:39]} Rxg1+ {[%emt 0:00:00]} 28. Kxg1 {[%emt 0:00:17]} Bxh3 {[%emt 0:00:00]} 29. Qxh4+ {[%emt 0:00:04]} Kg7 {[%emt 0:00:00]} 30. Kf2 {[%emt 0:08:23]} Bf5 {[%emt 0:00:00]} 31. Ke3 {[%emt 0:02:33]} Bg6 {[%emt 0:00:00]} 32. Kd4 {[%emt 0:01:55]} Kf7 {[%emt 0:00:00]} 33. e3 {[%emt 0:07:47]} Qe7 {[%emt 0:00:00]} 34. Qxe7+ {[%emt 0:01:00]} Kxe7 {[%emt 0:00:00]} 35. a4 {[%emt 0:01:39]} Bf5 {[%emt 0:00:00]} 36. h4 {[%emt 0:01:48]} Kd7 {[%emt 0:00:00]} 37. h5 {[%emt 0:01:04]} Ke7 {[%emt 0:00:00]} 38. a5 {[%emt 0:01:37]} Kf7 {[%emt 0:00:00]} 39. b5 {[%emt 0:01:28]} cxb5 {[%emt 0:00:45]} 40. Kxd5 {[%emt 0:03:49]} Bg4 {[%emt 0:01:37]} 41. Kc5 {[%emt 0:08:33]} Bxh5 {[%emt 0:00:44]} 42. Kxb5 {[%emt 0:00:11]} Be2+ {[%emt 0:00:30]} 43. Kb6 {[%emt 0:00:08]} Ba6 {[%emt 0:00:02]} 44. f5 {[%emt 0:00:20]} Ke7 {[%emt 0:01:20]} 45. Kc7 {[%emt 0:00:46]} Kf7 {[%emt 0:00:05]} 46. Kd8 {[%emt 0:06:41]} Bb5 {[%emt 0:00:18]} 47. Kc7 {[%emt 0:01:42]} Ba6 {[%emt 0:00:03]} 48. Kd7 {[%emt 0:00:11]} Be2 {[%emt 0:00:19]} 49. Kd6 {[%emt 0:09:29]} Bg4 {[%emt 0:02:57]} 50. e6+ {[%emt 0:04:53]} Kf6 {[%emt 0:00:06]} 51. e7 {[%emt 0:01:08]} Bh5 {[%emt 0:00:07]} 52. Kd7 {[%emt 0:00:38]} Kxf5 {[%emt 0:00:09]} 53. e8=Q {[%emt 0:00:08]} Bxe8+ {[%emt 0:00:11]} 54. Kxe8 {[%emt 0:00:04]} Ke6 {[%emt 0:00:16]} 55. Kd8 {[%emt 0:00:04]} Kd6 {[%emt 0:00:03]} 56. Kc8 {[%emt 0:00:06]} Kc6 {[%emt 0:00:02]} 57. Kb8 {[%emt 0:00:04]} Kb5 {[%emt 0:01:37]} 58. Kxb7 {[%emt 0:00:07]} Kxa5 {[%emt 0:00:01]} 59. Kc6 {[%emt 0:00:06]} 1-0

[Event "1000GM NY Winter IM-C 2024"]
[Site "New York"]
[Date "2024.01.16"]
[Round "9.5"]
[White "Yudasin, Leonid"]
[Black "Tanenbaum, Zachary"]
[Result "1/2-1/2"]
[ECO "C26"]
[WhiteElo "2353"]
[BlackElo "2272"]
[Annotator "TA"]
[PlyCount "68"]
[EventDate "2024.01.10"]
[EventType "swiss"]
[EventCountry "USA"]
[SourceTitle "playchess.com"]
[Source "ChessBase"]
[SourceQuality "1"]
[TimeControl "5400+30"]

{[%evp 10,68,-9,0,-4,-11,2,-18,-10,-20,0,-27,-22,-19,-27,-25,0,-31,-33,-31,-21,-31,-22,-26,-26,-20,-17,-24,-10,-23,0,0,0,0,27,27,27,27,35,31,42,45,46,22,29,23,22,20,18,0,34,29,48,16,10,17,10,0,43,29,171]} 1. e4 {[%emt 0:00:03]} e5 {[%emt 0:11:03]} 2. Nf3 {[%emt 0:00:48]} Nc6 {[%emt 0:00:31]} 3. Nc3 {[%emt 0:00:10]} Nf6 {[%emt 0:00:04]} 4. g3 {[%emt 0:00:13]} Bc5 {[%emt 0:00:05]} 5. Bg2 {[%emt 0:00:18]} d6 {[%emt 0:00:07]} 6. d3 {[%emt 0:00:56]} a5 {[%emt 0:00:17] is the new trend. C26: Vienna Game: 2...Nf6, sidelines .} 7. O-O {[%emt 0:01:45]} a4 {[%emt 0:00:23]} 8. a3 {[%emt 0:00:13]} O-O {[%emt 0:00:42] The position is equal.} 9. Be3 {[%emt 0:02:35]} h6 {[%emt 0:06:13]} 10. h3 {[%emt 0:02:53] [#]} Bxe3 $146 {[%emt 0:12:29]} ({Predecessor:} 10... Nd4 11. Bxd4 Bxd4 12. Nxd4 exd4 13. Ne2 c5 14. Qd2 Qb6 15. g4 Re8 16. f4 c4 {1-0 Naroditsky,D (2619)-Chigaev,M (2615) Titled Tuesday intern op 12th Sep Late blitz 2023 (4)}) 11. fxe3 {[%emt 0:01:21]} Ne7 {[%emt 0:00:32]} 12. Nh4 {[%emt 0:05:45]} Nh7 {[%emt 0:00:50]} 13. Nf5 {[%emt 0:00:49]} Bxf5 {[%emt 0:03:07]} 14. exf5 {[%emt 0:00:09]} c6 {[%emt 0:00:41]} 15. d4 {[%emt 0:00:43]} Qc7 {[%emt 0:12:22]} 16. g4 {[%emt 0:08:36]} d5 {[%emt 0:01:02]} 17. dxe5 {[%emt 0:00:46]} Qxe5 {[%emt 0:00:16]} 18. Qd4 {[%emt 0:00:01]} Qxd4 {[%emt 0:02:47]} ({Don't do} 18... Qg3 19. Qf4 (19. Nxa4 Ng5 $11) 19... Qh4 20. Rad1 $14 (20. Nxa4 Nxf5 21. Nc3 Ne7 $15)) 19. exd4 {[%emt 0:00:39]} Nf6 {[%emt 0:01:08][%cal Bh7f6,Bf6d7,Bd7b6][%mdl 32]} 20. Rfe1 {[%emt 0:01:35]} Rfe8 {[%emt 0:00:25]} 21. Kf2 {[%emt 0:08:09]} b5 {[%emt 0:01:59]} 22. Na2 {[%emt 0:01:03]} Kf8 {[%emt 0:08:43]} 23. Nb4 {[%emt 0:00:18]} Nd7 {[%emt 0:02:13]} 24. Bf1 {[%emt 0:01:00]} Rac8 {[%emt 0:02:34]} 25. Re3 {[%emt 0:02:31]} Ng8 {[%emt 0:02:24]} 26. Rae1 {[%emt 0:01:48][%cal Ba1e1,Be1e3,Be3c3][%mdl 32] [#] And now Rxe8+ would win.} (26. Rc3 $5 {[%cal Rc3c6]}) 26... Rxe3 {[%emt 0:01:45]} 27. Rxe3 {[%emt 0:00:22]} Nb6 {[%emt 0:02:13]} 28. Rc3 {[%emt 0:11:33]} Ne7 {[%emt 0:00:13]} 29. Re3 {[%emt 0:00:38]} Rc7 {[%emt 0:02:15]} 30. Kf3 {[%emt 0:05:21]} Rb7 {[%emt 0:03:02]} 31. Rc3 {[%emt 0:08:55]} Nc4 {[%emt 0:00:18]} 32. Bxc4 {[%emt 0:01:19]} dxc4 {[%emt 0:02:11]} 33. Re3 {[%emt 0:33:45]} Rd7 34. c3 {[%emt 0:00:30]} Rb7 {[%emt 0:22:36] Weighted Error Value: White=0.08 (flawless) /Black=0.09 (flawless)} (34... Rd6 $1 $11) 1/2-1/2

[Event "1000GM NY Winter IM-C 2024"]
[Site "New York"]
[Date "2024.01.15"]
[Round "9.6"]
[White "Pagan, Jonathan"]
[Black "Hajnal, Zoltan"]
[Result "1/2-1/2"]
[WhiteElo "2018"]
[BlackElo "2383"]
[Annotator "TA"]
[PlyCount "32"]
[EventDate "2024.01.10"]
[EventType "swiss"]
[EventCountry "USA"]
[SourceTitle "playchess.com"]
[Source "ChessBase"]
[SourceQuality "1"]
[TimeControl "5400+30"]

{[%evp 15,19,22,37,33,18,12]} 1. d4 {[%emt 0:00:02]} d5 {[%emt 0:03:58]} 2. c4 {[%emt 0:00:05]} c6 {[%emt 0:00:04]} 3. cxd5 {[%emt 0:00:04]} cxd5 {[%emt 0:00:03]} 4. Bf4 {[%emt 0:00:06]} Nf6 {[%emt 0:00:06]} 5. e3 {[%emt 0:00:05]} Nc6 {[%emt 0:00:04]} 6. Nc3 {[%emt 0:00:04]} a6 {[%emt 0:00:05]} 7. Be2 {[%emt 0:00:07]} Bf5 {[%emt 0:00:11]} 8. Nf3 {[%emt 0:00:06]} e6 {[%emt 0:00:07]} 9. Qb3 {[%emt 0:00:05] D13: Slav Defence: Exchange variation without ...Bf5.} Bd6 {[%emt 0:03:10]} 10. Bxd6 {[%emt 0:00:10] [#] A rather calm draw.} ({Much weaker is} 10. Qxb7 Na5 $11) {Predecessor:} 10... Qxd6 $146 11. Qxb7 O-O 12. Qb3 Rfb8 13. Qa3 Qxa3 14. bxa3 Ne4 15. Na4 Na7 16. Ne5 Nb5 {½-½ Vidit,S (2670)-Korobov,A (2695) Dubai op 19th 2017 (8)} 1/2-1/2

[Event "1000GM NY Winter IM-C 2024"]
[Site "New York"]
[Date "2024.01.16"]
[Round "9.7"]
[White "Gaw, Chloe"]
[Black "Pressman, Leif"]
[Result "1/2-1/2"]
[ECO "E91"]
[WhiteElo "1928"]
[BlackElo "2258"]
[Annotator "NA RC"]
[PlyCount "119"]
[EventDate "2024.01.10"]
[EventType "swiss"]
[EventCountry "USA"]
[SourceTitle "playchess.com"]
[Source "ChessBase"]
[SourceQuality "1"]
[TimeControl "5400+30"]

1. d4 {[%emt 0:00:03]} Nf6 {[%emt 0:00:43]} 2. c4 {[%emt 0:00:06]} g6 {[%emt 0:00:57]} 3. Nc3 {[%emt 0:00:07]} Bg7 {[%emt 0:00:26]} 4. e4 {[%emt 0:00:06]} d6 {[%emt 0:00:05]} 5. Be2 {[%emt 0:00:08]} O-O {[%emt 0:01:00]} 6. Nf3 {[%emt 0:00:08]} Bg4 {[%emt 0:01:23]} 7. Be3 {[%emt 0:02:10]} Nfd7 {[%emt 0:07:14]} 8. Qd2 {[%emt 0:12:37]} c5 {[%emt 0:05:18]} 9. d5 {[%emt 0:03:45]} Qa5 {[%emt 0:12:11]} 10. Nb5 {[%emt 0:06:07]} Qxd2+ {[%emt 0:06:18]} 11. Nxd2 {[%emt 0:03:49]} Bxe2 {[%emt 0:00:05]} 12. Kxe2 {[%emt 0:00:22]} Na6 {[%emt 0:04:49]} 13. Nc3 {[%emt 0:06:15]} Nc7 {[%emt 0:02:39]} 14. h3 {[%emt 0:05:36]} Rab8 {[%emt 0:02:19]} 15. a4 {[%emt 0:03:30]} Na6 {[%emt 0:00:51]} 16. Rac1 {[%emt 0:08:38]} Nb4 {[%emt 0:01:04]} 17. Nf3 {[%emt 0:04:09]} a6 {[%emt 0:02:59]} 18. Rhd1 {[%emt 0:01:48]} Nb6 {[%emt 0:01:21]} 19. b3 {[%emt 0:05:12]} Nd7 {[%emt 0:00:17]} 20. Ne1 {[%emt 0:01:38]} f5 {[%emt 0:04:47]} 21. exf5 {[%emt 0:03:17]} gxf5 {[%emt 0:02:08]} 22. Bg5 {[%emt 0:05:54]} Kf7 {[%emt 0:05:55]} 23. Nd3 {[%emt 0:02:17]} h6 {[%emt 0:03:25]} 24. Bf4 {[%emt 0:02:27]} Nxd3 {[%emt 0:02:16]} 25. Kxd3 {[%emt 0:01:19]} Rg8 {[%emt 0:03:03]} 26. g3 {[%emt 0:03:26]} h5 {[%emt 0:06:03]} 27. Re1 {[%emt 0:04:12]} Ne5+ {[%emt 0:01:51]} 28. Bxe5 {[%emt 0:04:13]} Bxe5 {[%emt 0:04:02]} 29. Ne2 {[%emt 0:03:36]} b5 {[%emt 0:00:42]} 30. Rb1 {[%emt 0:01:30]} h4 {[%emt 0:01:54]} 31. gxh4 {[%emt 0:04:16]} Rh8 {[%emt 0:03:21]} 32. Ng3 {[%emt 0:00:43]} Rxh4 {[%emt 0:03:09]} 33. axb5 {[%emt 0:00:34]} f4 {[%emt 0:04:44]} 34. Ne4 {[%emt 0:01:05]} axb5 {[%emt 0:00:19]} 35. Ng5+ {[%emt 0:01:50]} Kg6 {[%emt 0:01:24]} 36. Nf3 {[%emt 0:00:46]} Rxh3 {[%emt 0:00:27]} 37. Ke4 {[%emt 0:00:05]} Kf6 {[%emt 0:01:15]} 38. Rg1 {[%emt 0:00:36]} Rhh8 {[%emt 0:01:16]} 39. Rg5 {[%emt 0:00:36]} Kf7 {[%emt 0:02:43]} 40. Nxe5+ {[%emt 0:00:29]} dxe5 {[%emt 0:00:01]} 41. cxb5 {[%emt 0:00:35]} Rxb5 {[%emt 0:00:15]} 42. Kxe5 {[%emt 0:00:25]} c4 {[%emt 0:00:40]} 43. Rf5+ {[%emt 0:00:07]} Ke8 {[%emt 0:00:12]} 44. Ra1 {[%emt 0:00:29]} cxb3 {[%emt 0:00:59]} 45. Ra8+ {[%emt 0:00:22]} Kd7 {[%emt 0:00:02]} 46. Rxh8 {[%emt 0:00:27]} b2 {[%emt 0:00:01]} 47. Rh1 {[%emt 0:00:06]} b1=Q {[%emt 0:00:05]} 48. Rxb1 {[%emt 0:00:03]} Rxb1 {[%emt 0:00:03]} 49. Rxf4 {[%emt 0:00:57]} Rh1 {[%emt 0:00:33]} 50. Re4 {[%emt 0:01:08]} Rh5+ {[%emt 0:00:20]} 51. Kd4 {[%emt 0:00:42]} Rh1 {[%emt 0:00:25]} 52. f4 {[%emt 0:00:15]} Rd1+ {[%emt 0:00:20]} 53. Ke5 {[%emt 0:00:07]} Rh1 {[%emt 0:00:09]} 54. Ra4 {[%emt 0:01:17]} Re1+ {[%emt 0:00:10]} 55. Kf5 {[%emt 0:00:43]} Rd1 {[%emt 0:00:20]} 56. Ra7+ {[%emt 0:00:32]} Kd6 {[%emt 0:00:02]} 57. Ra6+ {[%emt 0:00:13]} Kd7 {[%emt 0:00:26]} 58. Ra7+ {[%emt 0:00:15]} Kd6 {[%emt 0:00:08]} 59. Ra6+ {[%emt 0:00:05]} Kd7 {[%emt 0:00:01]} 60. Ra7+ {[%emt 0:00:05]} 1/2-1/2